bitfinex-derivatives/quotes_SOLF0:USTF0_20251210
["timestamp","ask_amount","ask_price","bid_price","bid_amount"]
[1765363688257,6.5793,136.8,136.78,0.05364192]
[1765363689156,6.63107472,136.81,136.78,0.05364192]
[1765363689357,68.65107472,136.81,136.78,0.05364192]
[1765363689554,62.07217472,136.81,136.78,0.05364192]
[1765363690466,6.5792,136.8,136.78,0.05364192]
[1765363694676,6.5795,136.79,136.78,0.05364192]
[1765363695058,71.38989521,136.81,136.78,0.05364192]
[1765363695361,62.07217472,136.81,136.78,3.24364192]
[1765363695862,68.65077472,136.81,136.78,3.24364192]
[1765363696069,62.07217472,136.81,136.78,0.05364192]
[1765363696668,6.579,136.8,136.78,0.05364192]
[1765363697163,6.579,136.8,136.78,3.28364192]
[1765363697364,62.07217472,136.81,136.78,3.28364192]
[1765363697863,62.07217472,136.81,136.78,0.05364192]
[1765363699265,6.5793,136.8,136.78,0.05364192]
[1765363699470,62.07217472,136.81,136.78,0.05364192]
[1765363700567,6.5795,136.79,136.78,0.05364192]
[1765363701280,6.579,136.8,136.78,3.28364192]
[1765363703278,0.05217472,136.81,136.79,3.23]
[1765363703766,0.05217472,136.81,136.8,4.98583821]
[1765363703966,0.05217472,136.81,136.8,11.56483821]
[1765363704475,6.5771,136.85,136.81,3.23]
[1765363705375,0.04764162,136.84,136.82,3.27861966]
[1765363705776,6.62474162,136.84,136.82,3.27861966]
[1765363706675,6.62474162,136.84,136.82,0.04861966]
[1765363706881,6.62474162,136.84,136.82,3.27861966]
[1765363709072,6.5776,136.83,136.82,0.04861966]
[1765363709978,0.04764162,136.84,136.82,3.27861966]
[1765363711580,6.62484162,136.84,136.82,3.27861966]
[1765363713779,6.5776,136.83,136.82,0.04861966]
[1765363714171,6.5776,136.83,136.82,3.27861966]
[1765363714367,0.04764162,136.84,136.82,3.27861966]
[1765363714673,1.75583821,136.83,136.82,0.04861966]
[1765363714879,8.33343821,136.83,136.82,0.04861966]
[1765363715280,6.5776,136.83,136.82,3.27861966]
[1765363716572,0.04764162,136.84,136.82,3.27861966]
[1765363717374,6.62484162,136.84,136.82,3.27861966]
[1765363717584,0.04764162,136.84,136.82,3.27861966]
[1765363722684,0.04764162,136.84,136.82,9.85671966]
[1765363722875,0.04764162,136.84,136.83,3.23]
[1765363724188,68.5956,136.88,136.84,3.23]
[1765363724885,68.5956,136.88,136.86,3.23]
[1765363725087,6.62811494,136.88,136.86,3.28048435]
[1765363725682,0.05251494,136.88,136.86,3.28048435]
[1765363726279,0.05251494,136.88,136.87,3.19]
[1765363728081,1.75583821,136.92,136.88,3.19]
[1765363728787,6.5747,136.89,136.88,3.19]
[1765363729184,0.04890761,136.9,136.88,3.19]
[1765363729590,6.5747,136.89,136.88,3.19]
[1765363732488,0.04890761,136.9,136.88,3.19]
[1765363734284,6.5732,136.93,136.88,3.19]
[1765363734789,6.5734,136.92,136.89,3.19]
[1765363734990,1.75583821,136.94,136.89,3.19]
[1765363735394,0.04776414,136.93,136.91,3.19]
[1765363735583,6.5736,136.92,136.91,3.19]
[1765363736284,8.32943821,136.92,136.91,3.19]
[1765363736489,6.5737,136.91,136.9,0.04849204]
[1765363737893,8.32953821,136.91,136.9,0.04849204]
[1765363739390,8.32953821,136.91,136.9,3.23849204]
[1765363739896,8.32953821,136.91,136.9,0.04849204]
[1765363740588,1.75583821,136.91,136.9,0.04849204]
[1765363741399,8.32953821,136.91,136.9,0.04849204]
[1765363741695,8.32953821,136.91,136.84,3.19]
[1765363741696,6.5754,136.88,136.84,3.19]
[1765363741900,8.33123821,136.88,136.84,3.19]
[1765363742287,1.75583821,136.88,136.84,3.19]
[1765363742499,1.75583821,136.88,136.85,3.19]
[1765363742790,0.0472796,136.88,136.85,3.24376431]
[1765363743190,0.0472796,136.88,136.87,3.19]
[1765363743688,70.32913821,136.92,136.88,3.19]
[1765363744296,1.75583821,136.95,136.89,3.19]
[1765363744589,1.75583821,136.93,136.89,3.19]
[1765363744792,0.05293484,136.92,136.9,3.24115334]
[1765363745497,0.05293484,136.92,136.9,0.05115334]
[1765363745498,1.75583821,136.91,136.9,0.05115334]
[1765363747396,6.62633484,136.92,136.9,0.05115334]
[1765363747585,1.75583821,136.91,136.9,0.05115334]
[1765363750902,6.5748,136.89,136.84,3.16]
[1765363751103,1.75583821,136.88,136.84,3.16]
[1765363751700,6.5748,136.89,136.84,3.16]
[1765363751899,1.75583821,136.88,136.86,3.16]
[1765363752101,1.80397259,136.88,136.86,3.16]
[1765363752302,0.04813438,136.88,136.86,3.16]
[1765363752705,0.04813438,136.88,136.86,9.7361]
[1765363752904,0.04813438,136.88,136.87,3.16]
[1765363753205,1.75583821,136.92,136.87,3.16]
[1765363753804,63.73583821,136.94,136.9,3.16]
[1765363754206,0.05529684,136.93,136.92,3.16]
[1765363757507,61.98,136.98,136.92,3.16]
[1765363757508,1.75583821,136.97,136.92,4.62]
[1765363757713,1.75583821,136.97,136.93,3.28]
[1765363758115,8.32583821,136.99,136.95,3.28]
[1765363758612,6.62682394,136.98,136.96,3.3326879]
[1765363758813,6.62682394,136.98,136.96,0.0526879]
[1765363759614,6.62682394,136.98,136.96,3.3326879]
[1765363759615,0.05622394,136.98,136.96,3.3326879]
[1765363760517,0.05622394,136.98,136.96,9.9039879]
[1765363760815,0.05622394,136.98,136.97,3.28]
[1765363761207,1.81206215,136.98,136.96,0.0526879]
[1765363762720,6.62682394,136.98,136.96,0.0526879]
[1765363763921,2.73593914,136.97,136.96,0.0526879]
[1765363764120,2.73593914,136.97,136.91,3.28]
[1765363764121,6.5729,136.93,136.91,3.28]
[1765363765123,6.62584224,136.93,136.91,3.33244089]
[1765363766014,0.05294224,136.93,136.91,3.33244089]
[1765363766618,0.05294224,136.93,136.91,9.90614089]
[1765363766814,9.30713914,136.97,136.92,3.28]
[1765363767018,102.2,136.99,136.92,3.28]
[1765363767216,2.73593914,136.97,136.92,3.28]
[1765363767818,0.05400697,136.96,136.93,0.04681735]
[1765363768523,6.62540697,136.96,136.93,3.32681735]
[1765363769221,6.572,136.95,136.93,0.04681735]
[1765363771828,0.05400697,136.96,136.93,3.32681735]
[1765363773426,6.62540697,136.96,136.93,3.32681735]
[1765363774831,0.05400697,136.96,136.93,9.89951735]
[1765363775034,0.05400697,136.96,136.94,3.28]
[1765363777832,0.05400697,136.96,136.93,3.32681735]
[1765363779125,6.62540697,136.96,136.93,3.32681735]
[1765363779325,0.05400697,136.96,136.93,3.32681735]
[1765363780935,6.62540697,136.96,136.93,3.32681735]
[1765363781138,0.05400697,136.96,136.93,3.32681735]
[1765363783440,6.62540697,136.96,136.93,3.32681735]
[1765363785342,0.05400697,136.96,136.93,3.32681735]
[1765363786343,0.05400697,136.96,136.94,3.23]
[1765363787841,6.5718,136.95,136.93,3.27681735]
[1765363789945,6.62560697,136.96,136.93,3.27681735]
[1765363790139,0.05400697,136.96,136.93,3.27681735]
[1765363790749,0.05400697,136.96,136.95,3.23]
[1765363794044,6.5723,136.94,136.93,0.04681735]
[1765363795344,6.5736,136.92,136.88,3.23]
[1765363795743,2.73593914,136.93,136.88,3.23]
[1765363796353,0.04929765,136.92,136.89,0.04911931]
[1765363796953,0.04929765,136.92,136.89,3.27911931]
[1765363798363,6.5722,136.95,136.91,3.23]
[1765363798656,61.96,136.97,136.91,3.23]
[1765363798859,61.96,136.97,136.87,102.2859]
[1765363798860,68.5313,136.97,136.93,3.23]
[1765363799059,61.96,136.97,136.93,3.23]
[1765363799560,0.0551063,136.96,136.95,3.23]
[1765363801254,6.6265063,136.96,136.94,3.28089283]
[1765363801445,6.6265063,136.96,136.94,0.05089283]
[1765363801650,6.6265063,136.96,136.94,3.28089283]
[1765363802456,0.0551063,136.96,136.94,3.28089283]
[1765363804849,0.0551063,136.96,136.9,3.23]
[1765363805055,104.96053914,136.96,136.9,3.23]
[1765363805355,102.2303,136.95,136.9,3.23]
[1765363805554,2.73593914,136.93,136.85,3.23]
[1765363805756,104.98383914,136.93,136.85,3.23]
[1765363805956,6.5747,136.89,136.85,3.23]
[1765363806347,0.05211439,136.88,136.86,3.28447375]
[1765363808661,0.05211439,136.88,136.87,3.26]
[1765363809060,109.22569824,136.95,136.87,3.26]
[1765363809256,61.98,136.96,136.89,3.26]
[1765363809649,164.2047,136.96,136.89,3.26]
[1765363810057,102.2314,136.95,136.87,6.5754]
[1765363810257,0.05055823,136.94,136.91,0.05261979]
[1765363810962,6.5733,136.92,136.91,0.05261979]
[1765363813662,6.5733,136.92,136.91,3.31261979]
[1765363814065,6.5733,136.92,136.91,0.05261979]
[1765363817867,6.62335823,136.94,136.91,3.22261979]
[1765363818066,0.05055823,136.94,136.91,3.22261979]
[1765363819672,6.5728,136.93,136.91,3.22261979]
[1765363820071,0.05055823,136.94,136.91,3.22261979]
[1765363820072,0.05055823,136.94,136.91,0.05261979]
[1765363820265,6.5728,136.93,136.91,0.05261979]
[1765363820465,0.05055823,136.94,136.91,0.05261979]
[1765363821066,6.5733,136.92,136.91,0.05261979]
[1765363821469,6.5733,136.92,136.91,3.22261979]
[1765363821778,6.5733,136.92,136.91,0.05261979]
[1765363822673,6.5728,136.93,136.91,3.22261979]
[1765363822874,0.05055823,136.94,136.91,3.22261979]
[1765363824068,6.62295823,136.94,136.91,3.22261979]
[1765363825975,0.05055823,136.94,136.91,3.22261979]
[1765363826180,0.05055823,136.94,136.91,0.05261979]
[1765363826478,6.5733,136.92,136.91,0.05261979]
[1765363827779,6.5733,136.92,136.91,3.22261979]
[1765363829477,6.5733,136.92,136.91,0.05261979]
[1765363830380,6.5733,136.92,136.91,3.22261979]
[1765363831082,0.05055823,136.94,136.91,3.22261979]
[1765363831585,6.5728,136.93,136.91,3.22261979]
[1765363832175,0.05055823,136.94,136.91,3.22261979]
[1765363833484,6.5728,136.93,136.91,3.22261979]
[1765363835387,6.5733,136.92,136.91,0.05261979]
[1765363836083,6.62305823,136.94,136.91,3.22261979]
[1765363838087,0.05055823,136.94,136.91,3.22261979]
[1765363838792,0.05055823,136.94,136.93,3.17]
[1765363839380,0.05055823,136.94,136.93,9.7428]
[1765363839986,0.05055823,136.94,136.93,3.17]
[1765363843589,6.5708,136.98,136.94,3.17]
[1765363844586,0.04679897,136.97,136.95,3.21612439]
[1765363846996,0.04679897,136.97,136.95,9.78792439]
[1765363847193,0.04679897,136.97,136.96,3.17]
[1765363847393,0.04679897,136.97,136.96,9.7413]
[1765363848187,5.16632919,137.04,136.95,0.04612439]
[1765363848188,1.75088828,137.02,136.98,3.17]
[1765363848588,8.32028828,137.0,136.98,3.17]
[1765363849189,8.37591612,137.0,136.98,3.22559147]
[1765363849387,1.80651612,137.0,136.98,3.22559147]
[1765363850191,0.05562784,137.0,136.98,3.22559147]
[1765363853498,70.29868828,137.04,136.99,3.17]
[1765363853696,1.75088828,137.02,136.99,3.17]
[1765363854091,1.75088828,137.02,136.99,9.7397]
[1765363854297,1.75088828,137.02,137.0,3.17]
[1765363854500,1.80607194,137.02,137.0,3.17]
[1765363855302,0.05518366,137.02,137.0,3.17]
[1765363855491,1.80607194,137.02,137.0,3.17]
[1765363856101,8.37467194,137.02,136.98,0.05559147]
[1765363856303,8.37467194,137.02,136.99,3.24]
[1765363858005,1.80607194,137.02,136.99,3.24]
[1765363858412,0.05518366,137.02,136.99,3.24]
[1765363859815,0.05518366,137.02,137.0,3.24]
[1765363861519,1.75088828,137.01,136.98,3.29559147]
[1765363862010,1.75088828,136.99,136.98,0.05559147]
[1765363863310,0.05518366,137.02,136.98,0.05559147]
[1765363863311,1.75088828,137.01,136.98,3.29559147]
[1765363865017,1.75088828,136.99,136.98,0.05559147]
[1765363868523,1.75088828,136.99,136.98,3.29559147]
[1765363869021,1.75088828,137.01,136.98,3.29559147]
[1765363869823,8.31988828,137.01,136.98,3.29559147]
[1765363870031,1.75088828,136.99,136.98,0.05559147]
[1765363870428,1.75088828,136.99,136.98,3.29559147]
[1765363873626,1.75088828,136.99,136.98,0.05559147]
[1765363873627,8.32078828,136.99,136.98,0.05559147]
[1765363875637,1.75088828,136.99,136.98,3.19559147]
[1765363876036,1.75088828,136.99,136.98,0.05559147]
[1765363876536,102.23558366,137.02,136.98,0.05559147]
[1765363876737,8.32078828,136.99,136.98,0.05559147]
[1765363879144,102.2145,136.97,136.91,3.29]
[1765363879441,1.75088828,136.93,136.91,3.29]
[1765363879940,1.80573233,136.93,136.91,3.33691558]
[1765363880734,0.05484405,136.93,136.92,3.29]
[1765363881941,1.75088828,136.96,136.94,3.29]
[1765363882736,1.79960379,136.96,136.94,3.29]
[1765363883141,1.79960379,136.96,136.95,3.29]
[1765363883341,0.04871551,136.96,136.95,3.29]
[1765363885347,6.5699,137.0,136.95,9.8615]
[1765363885548,6.5699,137.0,136.96,3.29]
[1765363886050,61.96,137.01,136.97,3.29]
[1765363886548,61.96,137.01,136.96,6.5713]
[1765363886549,0.05066595,137.0,136.99,3.29]
[1765363886947,0.05066595,137.0,136.98,0.0491926]
[1765363887137,104.94485486,136.98,136.88,18.09941671]
[1765363887340,2.73545486,136.95,136.9,3.29]
[1765363887958,9.30735486,136.95,136.9,3.29]
[1765363888140,0.04733326,136.94,136.91,3.34405504]
[1765363888339,0.05346363,136.94,136.91,3.34168527]
[1765363888547,2.73545486,137.01,136.92,3.29]
[1765363888742,2.73545486,137.01,136.96,3.29]
[1765363889547,0.05009325,137.0,136.98,3.29]
[1765363896157,0.05009325,137.0,136.98,9.8602]
[1765363896358,0.05009325,137.0,136.99,3.29]
[1765363898648,109.73468696,137.11,137.0,3.29]
[1765363898864,107.31985839,137.1,137.0,3.29]
[1765363899054,102.12,137.1,137.0,3.29]
[1765363899357,107.31753358,137.1,137.0,3.29]
[1765363899555,6.61702476,137.06,137.04,0.05533693]
[1765363899764,6.61702476,137.06,137.04,3.34533693]
[1765363901660,0.05042476,137.06,137.04,3.34533693]
[1765363908173,0.05042476,137.06,137.04,9.91273693]
[1765363908678,0.05042476,137.06,137.05,3.04]
[1765363911268,0.05042476,137.06,137.04,0.05533693]
[1765363911677,0.05042476,137.06,137.04,3.09533693]
[1765363911881,6.61712476,137.06,137.04,3.09533693]
[1765363912073,6.61712476,137.06,137.04,0.05533693]
[1765363912484,6.61712476,137.06,137.04,3.09533693]
[1765363913978,9.30016079,137.05,137.04,0.05533693]
[1765363916685,9.30016079,137.05,136.96,102.2182]
[1765363916686,6.5681,137.03,137.0,9.6094]
[1765363917679,6.62037624,137.03,137.0,9.65557174]
[1765363917878,6.62037624,137.03,137.01,3.04]
[1765363920581,6.62037624,137.03,137.0,0.04617174]
[1765363920891,6.62037624,137.03,137.0,3.08617174]
[1765363922588,6.5685,137.02,137.0,3.08617174]
[1765363925495,6.5689,137.01,137.0,0.04617174]
[1765363926087,2.73316079,137.02,137.0,3.08617174]
[1765363926891,2.73316079,137.02,137.0,0.04617174]
[1765363927092,6.5689,137.01,137.0,0.04617174]
[1765363928184,64.67316079,137.02,137.0,0.04617174]
[1765363928594,61.94,137.02,137.0,3.28617174]
[1765363929698,61.94,137.02,137.01,3.24]
[1765363929903,0.05227624,137.03,137.01,3.24]
[1765363930600,6.62027624,137.03,137.0,3.28617174]
[1765363930898,0.05227624,137.03,137.0,3.28617174]
[1765363931999,0.05227624,137.03,137.01,3.24]
[1765363939406,0.05227624,137.03,137.02,3.17]
[1765363943002,6.5665,137.07,137.03,3.17]
[1765363944001,0.05453591,137.06,137.05,3.17]
[1765363947408,1.80307506,137.06,137.04,0.05085595]
[1765363948005,6.567,137.05,137.04,0.05085595]
[1765363953917,8.31553915,137.05,137.04,0.05085595]
[1765363962522,6.567,137.05,137.04,3.22085595]
[1765363962730,0.05453591,137.06,137.04,3.22085595]
[1765363965520,1.74853915,137.11,137.07,3.17]
[1765363965714,1.74853915,137.09,137.05,3.17]
[1765363966538,1.74853915,137.07,137.06,0.05127947]
[1765363968020,1.74853915,137.07,137.02,3.27]
[1765363968235,1.74853915,137.04,137.02,3.27]
[1765363968937,1.79569819,137.04,137.02,3.31888637]
[1765363969329,8.36329819,137.04,137.02,3.31888637]
[1765363972439,1.79569819,137.04,137.02,3.31888637]
[1765363972632,13.1293,137.11,137.02,3.31888637]
[1765363972633,124.0251,137.12,137.02,3.31888637]
[1765363972838,1.74853915,137.09,137.02,3.27]
[1765363973536,1.74853915,137.07,137.02,3.27]
[1765363973725,0.04642726,137.06,137.03,0.0468499]
[1765363973926,0.04642726,137.06,137.04,3.27]
[1765363974530,0.04642726,137.06,137.05,3.27]
[1765363974730,1.74853915,137.11,137.05,3.27]
[1765363975246,1.74853915,137.11,137.08,3.27]
[1765363975840,1.79692317,137.11,137.08,3.32615771]
[1765363977343,8.36122317,137.11,137.08,3.32615771]
[1765363978136,1.79692317,137.11,137.08,3.32615771]
[1765363979846,0.04838402,137.11,137.08,3.32615771]
[1765363980046,1.74853915,137.1,137.08,0.05615771]
[1765363980945,0.04838402,137.11,137.08,0.05615771]
[1765363981146,1.74853915,137.1,137.08,0.05615771]
[1765363983247,0.04838402,137.11,137.1,3.27]
[1765363988345,1.74853915,137.14,137.11,3.27]
[1765363988645,1.74853915,137.16,137.11,3.27]
[1765363989240,68.4816,137.17,137.13,3.27]
[1765363989440,0.02315431,137.16,137.14,3.32493318]
[1765363989645,1.77169346,137.16,137.14,0.05493318]
[1765363990450,6.5622,137.15,137.14,0.05493318]
[1765363993951,6.5636,137.13,137.09,3.27]
[1765363994152,8.31213915,137.13,137.09,3.27]
[1765363995051,6.61984284,137.12,137.1,3.31889775]
[1765363995948,1.74853915,137.11,137.1,0.04889775]
[1765363998346,8.31273915,137.11,137.1,0.04889775]
[1765364001243,1.74853915,137.08,137.06,3.31]
[1765364001447,1.74853915,137.08,137.02,3.31]
[1765364001959,1.74853915,137.06,137.04,3.31]
[1765364002257,1.80172055,137.06,137.04,3.36373425]
[1765364002562,0.0531814,137.06,137.05,3.31]
[1765364006454,0.0531814,137.06,137.05,9.877]
[1765364007054,64.63164652,137.12,137.06,3.31]
[1765364008257,0.05532201,137.1,137.08,0.04611826]
[1765364008556,6.62002201,137.1,137.08,0.04611826]
[1765364008759,0.05532201,137.1,137.08,0.04611826]
[1765364008960,0.05532201,137.1,137.08,3.35611826]
[1765364013351,6.62012201,137.1,137.08,3.35611826]
[1765364013556,6.62012201,137.1,137.08,0.04611826]
[1765364016858,6.62012201,137.1,137.08,3.35611826]
[1765364017662,0.05532201,137.1,137.08,3.35611826]
[1765364018559,6.62002201,137.1,137.08,0.04611826]
[1765364019662,6.62002201,137.1,137.08,3.35611826]
[1765364020467,6.62002201,137.1,137.08,0.04611826]
[1765364020670,102.1398,137.07,137.0,3.31]
[1765364020872,102.1547,137.05,137.0,3.31]
[1765364021164,6.5685,137.02,137.0,3.31]
[1765364021565,6.62462032,137.02,137.0,3.36611996]
[1765364025471,0.05612032,137.02,137.0,3.36611996]
[1765364029073,0.05612032,137.02,137.0,9.93551996]
[1765364029262,0.05612032,137.02,137.01,3.23]
[1765364032769,9.29824652,137.06,137.02,3.23]
[1765364033470,9.29824652,137.06,137.03,3.23]
[1765364033676,9.35380718,137.06,137.03,3.28590826]
[1765364036570,6.62216066,137.06,137.03,3.28590826]
[1765364037575,6.62216066,137.06,137.03,0.05590826]
[1765364037772,6.5671,137.05,137.03,0.05590826]
[1765364039174,6.5675,137.04,137.03,0.05590826]
[1765364040367,6.5686,137.02,136.98,3.23]
[1765364041461,0.05198152,137.01,136.99,3.28023787]
[1765364047076,0.05198152,137.01,136.99,9.84993787]
[1765364047270,2.73164652,137.05,136.99,3.28023787]
[1765364047779,6.5675,137.04,137.01,3.07]
[1765364048178,6.61748333,137.04,137.01,3.07]
[1765364053075,0.04998333,137.04,137.01,3.07]
[1765364054185,6.61758333,137.04,137.01,3.07]
[1765364061782,6.5681,137.03,137.01,3.07]
[1765364061979,6.5681,137.03,137.0,3.29]
[1765364067292,6.5685,137.02,137.0,3.29]
[1765364068395,102.21488333,137.04,136.99,3.34023787]
[1765364068776,1.75020885,137.02,136.99,3.34023787]
[1765364069590,6.5693,137.01,136.99,3.34023787]
[1765364075684,6.5694,137.0,136.99,0.05023787]
[1765364075881,8.31960885,137.0,136.99,0.05023787]
[1765364080298,6.5694,137.0,136.99,3.34023787]
[1765364080790,6.5694,137.0,136.99,0.05023787]
[1765364084097,6.5694,137.0,136.91,93.28661671]
[1765364084098,1.75020885,136.96,136.9,18.09941671]
[1765364084306,1.75020885,136.93,136.9,3.29]
[1765364084802,1.75020885,136.96,136.9,3.29]
[1765364084998,0.049709,136.94,136.92,0.04690825]
[1765364087089,1.79991785,136.94,136.92,0.04690825]
[1765364087294,1.79991785,136.94,136.86,6.5758]
[1765364087295,164.2045,136.93,136.85,3.12]
[1765364087504,102.2784,136.89,136.81,3.12]
[1765364087704,164.2384,136.89,136.81,3.12]
[1765364087895,165.98860885,136.89,136.81,4.87020885]
[1765364088094,6.5757,136.88,136.82,3.12]
[1765364088296,0.04679891,136.86,136.84,3.17579291]
[1765364089507,306.6321,136.98,136.84,3.17579291]
[1765364089508,6.5729,136.93,136.85,3.12]
[1765364089702,8.32310885,136.93,136.87,3.12]
[1765364090206,1.75020885,136.93,136.87,3.12]
[1765364090401,6.5719,136.95,136.87,3.12]
[1765364090706,0.05476953,136.92,136.91,3.12]
[1765364091097,0.05476953,136.92,136.9,3.17492699]
[1765364092608,1.75020885,136.97,136.91,3.12]
[1765364093000,68.5499,137.0,136.91,3.12]
[1765364093305,1.75020885,136.97,136.91,3.12]
[1765364093502,0.05375818,136.95,136.94,3.12]
[1765364097209,0.05375818,136.95,136.93,3.17045939]
[1765364097800,0.05375818,136.95,136.93,9.74305939]
[1765364097998,0.05375818,136.95,136.94,3.12]
[1765364098706,0.05375818,136.95,136.93,0.05045939]
[1765364099010,1.80396703,136.95,136.93,3.17045939]
[1765364099599,0.05375818,136.95,136.93,3.17045939]
[1765364107505,0.05375818,136.95,136.93,9.74315939]
[1765364107814,1.75020885,137.01,136.94,3.06]
[1765364108806,67.61691495,137.05,136.97,9.6307]
[1765364108807,12.28363202,137.03,136.97,9.6307]
[1765364109010,1.75020885,137.02,136.99,0.05594054]
[1765364109814,8.31870885,137.02,136.99,0.05594054]
[1765364110015,1.75020885,137.02,136.99,0.05594054]
[1765364111419,1.75020885,137.02,136.99,3.11594054]
[1765364111604,6.5683,137.03,136.99,3.11594054]
[1765364112615,6.5683,137.03,136.99,9.68584054]
[1765364112803,6.5683,137.03,137.0,3.06]
[1765364114313,6.5683,137.03,136.99,3.11594054]
[1765364114501,1.75020885,137.02,136.99,3.11594054]
[1765364115915,6.5683,137.03,136.99,3.11594054]
[1765364116115,1.75020885,137.02,136.99,3.11594054]
[1765364116909,35.0293,137.1,137.01,3.27]
[1765364117115,1.75020885,137.04,137.03,0.05027098]
[1765364117910,63.73020885,137.07,137.03,3.32027098]
[1765364118913,6.5671,137.05,137.03,3.32027098]
[1765364119216,8.31730885,137.05,137.03,3.32027098]
[1765364119714,6.5675,137.04,137.03,0.05027098]
[1765364121015,1.75020885,137.05,137.03,0.05027098]
[1765364122606,6.5675,137.04,137.03,0.05027098]
[1765364126014,6.5675,137.04,137.0,3.27]
[1765364126316,1.75020885,137.02,137.0,3.27]
[1765364127119,1.75020885,137.02,137.0,3.31766991]
[1765364128412,1.75020885,137.02,137.0,0.04766991]
[1765364128915,6.568,137.03,137.0,0.04766991]
[1765364130721,6.568,137.03,137.0,3.31766991]
[1765364140026,6.5685,137.02,137.0,3.31766991]
[1765364141721,6.568,137.03,137.0,3.31766991]
[1765364142732,0.0490033,137.05,137.01,3.27]
[1765364143825,0.0490033,137.05,137.02,3.27]
[1765364144619,0.0490033,137.05,137.02,9.8383]
[1765364144820,0.0490033,137.05,137.03,3.27]
[1765364149333,0.0490033,137.05,137.01,3.19]
[1765364150533,6.6160033,137.05,137.01,3.19]
[1765364157434,24.83351151,137.07,137.01,9.7589]
[1765364158333,24.83351151,137.07,137.02,3.19]
[1765364158532,6.567,137.05,137.03,3.24132347]
[1765364158939,24.83351151,137.07,137.03,3.24132347]
[1765364159139,31.40001151,137.07,137.03,3.24132347]
[1765364159335,24.83351151,137.07,137.03,3.24132347]
[1765364159850,9.30041962,137.08,137.03,9.80922347]
[1765364160148,9.30041962,137.08,137.04,3.19]
[1765364161838,6.5662,137.07,137.04,9.7575]
[1765364162238,6.5662,137.07,137.04,31.42348117]
[1765364162436,6.5662,137.07,137.04,9.7575]
[1765364162638,6.5662,137.07,137.04,3.19]
[1765364164148,2.73441962,137.1,137.05,3.19]
[1765364164329,83.84,137.12,137.07,3.19]
[1765364164639,5.26652886,137.11,137.07,3.19]
[1765364164834,86.57441962,137.12,137.07,3.19]
[1765364165039,5.26590055,137.11,137.07,3.19]
[1765364165243,86.57441962,137.12,137.07,3.19]
[1765364165550,6.5648,137.1,137.07,3.19]
[1765364167142,9.29851962,137.12,137.07,3.19]
[1765364168042,104.81441962,137.15,137.07,3.19]
[1765364168237,2.73441962,137.15,137.1,3.2771523]
[1765364170135,6.5628,137.14,137.1,3.2771523]
[1765364171247,6.5634,137.13,137.1,3.2771523]
[1765364172245,9.29701962,137.15,137.1,3.2771523]
[1765364173150,2.73441962,137.18,137.1,3.2771523]
[1765364173356,2.73441962,137.18,137.11,3.23]
[1765364173541,2.73441962,137.18,137.14,3.23]
[1765364174349,6.5613,137.17,137.14,3.23]
[1765364175545,64.67441962,137.2,137.14,3.23]
[1765364175546,61.94,137.2,137.14,3.23]
[1765364175852,64.67441962,137.2,137.14,3.23]
[1765364176659,6.5608,137.18,137.14,3.23]
[1765364176852,64.67441962,137.2,137.15,3.31]
[1765364177057,6.5604,137.19,137.16,3.36257245]
[1765364177256,166.72321962,137.2,137.16,0.05257245]
[1765364177552,2.73441962,137.17,137.16,0.05257245]
[1765364179167,9.29531962,137.18,137.16,0.05257245]
[1765364181872,6.5609,137.18,137.16,0.05257245]
[1765364182373,61.94,137.2,137.16,3.36257245]
[1765364182773,61.94,137.2,137.16,0.05257245]
[1765364183168,6.5608,137.18,137.16,0.05257245]
[1765364186970,6.5613,137.17,137.16,0.05257245]
[1765364189081,6.5613,137.17,137.16,3.36257245]
[1765364189576,61.94,137.2,137.16,3.36257245]
[1765364189966,6.5609,137.18,137.16,3.36257245]
[1765364190679,8.30618721,137.19,137.16,3.36257245]
[1765364191286,1.74578721,137.19,137.16,3.36257245]
[1765364191579,8.30538721,137.21,137.16,3.36257245]
[1765364191974,6.5596,137.21,137.16,3.36257245]
[1765364192575,6.5596,137.21,137.18,3.31]
[1765364193575,1.74578721,137.22,137.19,3.31]
[1765364193881,1.74578721,137.22,137.19,3.36611186]
[1765364195479,8.30478721,137.22,137.19,3.36611186]
[1765364197673,1.74578721,137.2,137.19,0.05611186]